bitfinex-derivatives/quotes_SOLF0:USTF0_20250919
["timestamp","ask_amount","ask_price","bid_price","bid_amount"]
[1758321236507,4.34,238.68,238.65,6.57]
[1758321236910,4.34,238.68,238.64,3.79908203]
[1758321237111,4.34,238.68,238.65,6.57]
[1758321237511,4.34,238.68,238.64,3.79908203]
[1758321237711,4.34,238.68,238.65,6.57]
[1758321238810,4.34,238.68,238.65,7.22]
[1758321239311,4.34,238.68,238.64,3.79908203]
[1758321240111,4.34,238.68,238.65,6.8]
[1758321240513,4.34,238.68,238.64,3.79908203]
[1758321240905,4.34,238.68,238.65,6.8]
[1758321241305,4.34,238.68,238.64,3.79908203]
[1758321242010,4.34,238.68,238.65,6.8]
[1758321243711,4.33,238.68,238.64,0.03018203]
[1758321243915,4.70495554,238.67,238.64,0.03018203]
[1758321244109,4.33,238.66,238.64,0.03018203]
[1758321244313,4.70495554,238.67,238.64,0.03018203]
[1758321244917,8.47365554,238.67,238.64,0.03018203]
[1758321245117,4.33,238.66,238.64,0.03018203]
[1758321245317,8.47365554,238.67,238.64,0.03018203]
[1758321245517,4.33,238.66,238.64,0.03018203]
[1758321245820,8.47365554,238.67,238.64,0.03018203]
[1758321246116,4.33,238.66,238.64,0.03018203]
[1758321246322,8.47365554,238.67,238.64,0.03018203]
[1758321246510,4.33,238.66,238.64,0.03018203]
[1758321246914,8.47365554,238.67,238.64,0.03018203]
[1758321247513,4.33,238.66,238.64,0.03018203]
[1758321248319,8.47365554,238.67,238.64,0.03018203]
[1758321248527,4.33,238.66,238.64,0.03018203]
[1758321248723,8.47365554,238.67,238.64,0.03018203]
[1758321249028,4.33,238.66,238.64,0.03018203]
[1758321249227,8.47365554,238.67,238.64,0.03018203]
[1758321249429,4.33,238.66,238.64,0.03018203]
[1758321250528,8.47365554,238.67,238.64,0.03018203]
[1758321250923,4.33,238.66,238.64,0.03018203]
[1758321251328,8.0987,238.67,238.64,6.83018203]
[1758321251524,8.0987,238.67,238.64,0.03018203]
[1758321251525,3.7687,238.67,238.64,0.03018203]
[1758321251828,8.47365554,238.67,238.64,0.03018203]
[1758321252027,3.7687,238.67,238.64,0.03018203]
[1758321252229,4.33,238.66,238.64,0.03018203]
[1758321253327,3.7687,238.67,238.64,0.03018203]
[1758321253527,4.33,238.66,238.64,0.03018203]
[1758321254325,8.47365554,238.67,238.64,0.03018203]
[1758321254729,4.33,238.66,238.64,0.03018203]
[1758321255029,3.7687,238.67,238.64,0.03018203]
[1758321255429,4.33,238.66,238.64,0.03018203]
[1758321256323,8.47365554,238.67,238.64,0.03018203]
[1758321256828,4.33,238.66,238.64,0.03018203]
[1758321257022,8.47365554,238.67,238.64,0.03018203]
[1758321257331,4.33,238.66,238.64,0.03018203]
[1758321257831,8.47365554,238.67,238.64,0.03018203]
[1758321258023,4.33,238.66,238.64,0.03018203]
[1758321258422,8.47365554,238.67,238.64,0.03018203]
[1758321258628,4.33,238.66,238.64,0.03018203]
[1758321259031,8.47365554,238.67,238.64,0.03018203]
[1758321259336,3.7687,238.67,238.64,0.03018203]
[1758321259631,4.33,238.66,238.64,0.03018203]
[1758321259927,8.47365554,238.67,238.64,0.03018203]
[1758321260528,4.33,238.66,238.64,0.03018203]
[1758321260727,8.47365554,238.67,238.64,0.03018203]
[1758321260937,4.33,238.66,238.64,0.03018203]
[1758321261327,3.7687,238.67,238.64,0.03018203]
[1758321261723,4.33,238.66,238.64,0.03018203]
[1758321262128,3.7687,238.67,238.64,0.03018203]
[1758321262530,4.33,238.66,238.64,0.03018203]
[1758321263434,3.7687,238.67,238.64,0.03018203]
[1758321264334,4.33,238.66,238.64,0.03018203]
[1758321264536,3.7687,238.67,238.64,0.03018203]
[1758321264737,4.33,238.66,238.64,0.03018203]
[1758321264937,3.7687,238.67,238.64,0.03018203]
[1758321265138,4.33,238.66,238.64,0.03018203]
[1758321265538,3.7687,238.67,238.64,0.03018203]
[1758321265938,4.33,238.66,238.64,0.03018203]
[1758321266840,3.7687,238.67,238.64,0.03018203]
[1758321267440,4.33,238.66,238.64,0.03018203]
[1758321267629,8.47365554,238.67,238.64,0.03018203]
[1758321268335,4.33,238.66,238.64,0.03018203]
[1758321268536,8.47365554,238.67,238.64,0.03018203]
[1758321269133,4.35,238.66,238.64,0.03018203]
[1758321269731,8.47365554,238.67,238.64,0.03018203]
[1758321269940,4.35,238.66,238.64,0.03018203]
[1758321270136,8.47365554,238.67,238.64,0.03018203]
[1758321270638,4.35,238.66,238.64,0.03018203]
[1758321270844,8.47365554,238.67,238.64,0.03018203]
[1758321271040,4.35,238.66,238.64,0.03018203]
[1758321271241,8.47365554,238.67,238.64,0.03018203]
[1758321271641,4.35,238.66,238.64,0.03018203]
[1758321271842,8.47365554,238.67,238.64,0.03018203]
[1758321272243,4.35,238.66,238.64,0.03018203]
[1758321273149,8.47365554,238.67,238.64,0.03018203]
[1758321273646,4.35,238.66,238.64,0.03018203]
[1758321273841,8.47365554,238.67,238.64,0.03018203]
[1758321274043,4.35,238.66,238.64,0.03018203]
[1758321274244,8.47365554,238.67,238.64,0.03018203]
[1758321274446,4.35,238.66,238.64,0.03018203]
[1758321274948,8.47365554,238.67,238.64,0.03018203]
[1758321276443,4.35,238.66,238.64,0.03018203]
[1758321276846,8.47365554,238.67,238.64,0.03018203]
[1758321277046,4.35,238.66,238.64,0.03018203]
[1758321277649,8.47365554,238.67,238.64,0.03018203]
[1758321277849,4.35,238.66,238.64,0.03018203]
[1758321278052,8.47365554,238.67,238.64,0.03018203]
[1758321278352,4.35,238.66,238.64,0.03018203]
[1758321278551,8.47365554,238.67,238.64,0.03018203]
[1758321278950,4.35,238.66,238.64,0.03018203]
[1758321279344,8.47365554,238.67,238.64,0.03018203]
[1758321279744,4.35,238.66,238.64,0.03018203]
[1758321279954,8.47365554,238.67,238.64,0.03018203]
[1758321280549,4.35,238.66,238.64,0.03018203]
[1758321280747,8.47365554,238.67,238.64,0.03018203]
[1758321280958,4.35,238.66,238.64,0.03018203]
[1758321282760,8.47365554,238.67,238.64,0.03018203]
[1758321283168,4.35,238.66,238.64,0.03018203]
[1758321283468,8.47365554,238.67,238.64,0.03018203]
[1758321283667,4.35,238.66,238.64,0.03018203]
[1758321284563,8.47365554,238.67,238.64,0.03018203]
[1758321284761,4.35,238.66,238.64,0.03018203]
[1758321284962,4.70495554,238.67,238.64,0.03018203]
[1758321285164,4.35,238.66,238.64,0.03018203]
[1758321285364,4.70495554,238.67,238.64,0.03018203]
[1758321285564,4.35,238.66,238.64,0.03018203]
[1758321285970,4.70495554,238.67,238.64,0.03018203]
[1758321286170,4.35,238.66,238.64,0.03018203]
[1758321286468,4.70495554,238.67,238.64,0.03018203]
[1758321286972,4.70495554,238.67,238.65,6.69]
[1758321290969,4.70495554,238.67,238.64,0.03018203]
[1758321291272,4.70495554,238.67,238.65,6.69]
[1758321291575,9.05495554,238.68,238.65,6.69]
[1758321295478,4.35,238.68,238.65,6.69]
[1758321304987,4.35,238.68,238.64,3.79908203]
[1758321305185,4.35,238.68,238.65,6.59]
[1758321305984,0.02676747,238.69,238.65,6.59]
[1758321306287,4.34,238.68,238.65,6.59]
[1758321308187,4.34,238.68,238.64,3.79908203]
[1758321308787,4.34,238.68,238.65,6.59]
[1758321309687,4.34,238.68,238.64,3.79908203]
[1758321309986,4.34,238.68,238.65,6.59]
[1758321310385,4.34,238.68,238.64,3.79908203]
[1758321310585,4.34,238.68,238.65,6.59]
[1758321310785,4.34,238.68,238.64,3.79908203]
[1758321311082,4.34,238.68,238.65,6.59]
[1758321311483,4.34,238.68,238.64,3.79908203]
[1758321311684,4.34,238.68,238.65,6.59]
[1758321311885,4.34,238.68,238.64,3.79908203]
[1758321312089,4.34,238.68,238.65,6.59]
[1758321312785,4.34,238.68,238.64,3.79908203]
[1758321313188,4.34,238.68,238.65,6.59]
[1758321313885,4.34,238.68,238.64,3.79908203]
[1758321314890,4.34,238.68,238.65,6.59]
[1758321316191,4.34,238.68,238.64,3.79908203]
[1758321316392,4.34,238.68,238.65,6.59]
[1758321316890,4.34,238.68,238.64,3.79908203]
[1758321318293,4.34,238.68,238.65,6.59]
[1758321318992,4.34,238.68,238.64,0.03018203]
[1758321319391,4.34,238.68,238.65,6.59]
[1758321320490,3.79516747,238.69,238.64,6.62018203]
[1758321320993,4.34,238.68,238.64,6.62018203]
[1758321321194,4.34,238.68,238.65,6.59]
[1758321322303,4.73172301,238.69,238.65,6.59]
[1758321322508,4.34,238.68,238.65,6.59]
[1758321322992,8.1084,238.68,238.65,6.59]
[1758321325804,4.34,238.67,238.65,6.59]
[1758321333100,4.33,238.68,238.64,0.03018203]
[1758321333306,4.33,238.68,238.65,7.07]
[1758321334401,9.03495554,238.68,238.65,7.07]
[1758321336598,4.33,238.68,238.65,7.07]
[1758321341910,4.73172301,238.69,238.65,7.07]
[1758321342110,4.33,238.68,238.65,7.07]
[1758321342303,9.03495554,238.68,238.65,7.07]
[1758321343012,4.33,238.68,238.65,7.07]
[1758321345308,4.33,238.68,238.64,0.03018203]
[1758321345506,4.33,238.68,238.65,7.07]
[1758321346614,4.33,238.68,238.64,0.03018203]
[1758321346809,4.33,238.68,238.65,7.07]
[1758321348409,4.73172301,238.69,238.64,0.03018203]
[1758321348614,0.02676747,238.69,238.65,7.07]
[1758321350013,0.02676747,238.69,238.66,3.7686]
[1758321350215,0.02676747,238.69,238.67,7.07]
[1758321350516,0.02676747,238.69,238.66,3.7686]
[1758321350711,0.02676747,238.69,238.67,7.07]
[1758321350912,0.02676747,238.69,238.66,3.7686]
[1758321351311,0.02676747,238.69,238.67,7.07]
[1758321351714,0.02676747,238.69,238.66,3.7686]
[1758321352715,0.02676747,238.69,238.67,7.07]
[1758321352915,0.02676747,238.69,238.66,3.7686]
[1758321353718,0.02676747,238.69,238.67,7.07]
[1758321353912,0.02676747,238.69,238.66,3.7686]
[1758321354111,0.02676747,238.69,238.67,7.07]
[1758321354307,0.02676747,238.69,238.66,3.7686]
[1758321354709,0.02676747,238.69,238.67,3.7684]
[1758321354909,0.02676747,238.69,238.68,7.07]
[1758321390754,4.34,238.68,238.65,6.71]
[1758321390963,0.02676747,238.69,238.64,0.03018203]
[1758321391252,4.34,238.68,238.64,0.03018203]
[1758321391450,0.02676747,238.69,238.64,0.03018203]
[1758321391648,4.34,238.68,238.64,0.03018203]
[1758321392253,0.02676747,238.69,238.64,6.74018203]
[1758321392461,4.34,238.68,238.64,6.74018203]
[1758321392659,0.02676747,238.69,238.64,6.74018203]
[1758321393056,4.34,238.68,238.64,6.74018203]
[1758321393256,0.02676747,238.69,238.64,6.74018203]
[1758321394360,4.34,238.68,238.64,6.74018203]
[1758321394558,0.02676747,238.69,238.64,6.74018203]
[1758321395054,4.34,238.68,238.64,6.74018203]
[1758321395258,0.02676747,238.69,238.64,6.74018203]
[1758321395959,4.34,238.68,238.64,6.74018203]
[1758321396355,0.02676747,238.69,238.64,6.74018203]
[1758321396951,4.34,238.68,238.64,6.74018203]
[1758321397361,4.34,238.68,238.64,0.03018203]
[1758321397565,4.34,238.68,238.65,6.71]
[1758321397859,0.02676747,238.69,238.65,6.71]
[1758321398052,4.34,238.68,238.65,6.71]
[1758321400861,4.34,238.68,238.64,0.03018203]
[1758321402264,4.34,238.68,238.65,6.71]
[1758321403261,4.34,238.68,238.64,0.03018203]
[1758321403466,4.34,238.68,238.65,6.71]
[1758321403766,4.34,238.68,238.64,0.03018203]
[1758321403966,4.34,238.68,238.65,6.71]
[1758321405064,4.34,238.68,238.64,0.03018203]
[1758321405266,4.34,238.68,238.65,6.71]
[1758321406263,4.34,238.68,238.64,0.03018203]
[1758321406466,4.34,238.68,238.65,6.71]
[1758321406867,4.34,238.68,238.64,0.03018203]
[1758321407161,4.34,238.68,238.65,6.71]
[1758321412364,4.34,238.68,238.64,0.03018203]
[1758321412870,4.34,238.68,238.65,6.71]
[1758321413073,4.34,238.68,238.64,0.03018203]
[1758321413369,4.34,238.68,238.65,6.71]
[1758321413970,4.34,238.68,238.64,0.03018203]
[1758321414271,4.34,238.68,238.65,6.71]
[1758321415471,4.34,238.68,238.64,0.03018203]
[1758321415972,4.34,238.68,238.65,6.71]
[1758321416571,4.34,238.68,238.64,0.03018203]
[1758321416867,4.34,238.68,238.65,6.71]
[1758321417071,4.34,238.68,238.64,0.03018203]
[1758321417269,0.02676747,238.69,238.64,0.03018203]
[1758321417463,0.02676747,238.69,238.64,6.74018203]
[1758321418071,4.34,238.68,238.64,6.74018203]
[1758321418470,0.02676747,238.69,238.64,0.03018203]
[1758321418768,0.02676747,238.69,238.65,6.81]
[1758321418975,4.35,238.68,238.65,6.81]
[1758321420972,4.35,238.68,238.65,7.14]
[1758321421674,4.35,238.68,238.64,0.03018203]
[1758321421874,4.35,238.68,238.65,7.14]
[1758321425777,4.35,238.68,238.64,0.03018203]
[1758321426182,4.35,238.68,238.65,7.14]
[1758321427482,4.35,238.68,238.64,0.03018203]
[1758321427781,4.35,238.68,238.65,7.14]
[1758321432577,0.02676747,238.69,238.65,7.14]
[1758321432777,4.35,238.68,238.65,7.14]
[1758321435586,4.35,238.68,238.64,0.03018203]
[1758321435988,4.35,238.68,238.65,7.14]
[1758321436285,4.35,238.68,238.64,0.03018203]
[1758321436479,4.35,238.68,238.65,7.14]
[1758321436681,4.35,238.68,238.64,0.03018203]
[1758321436882,4.35,238.68,238.65,7.14]
[1758321437875,4.35,238.68,238.64,0.03018203]
[1758321438077,4.35,238.68,238.65,7.14]
[1758321440385,4.35,238.68,238.64,0.03018203]
[1758321440584,4.35,238.68,238.65,7.14]
[1758321443592,4.35,238.68,238.64,0.03018203]
[1758321443794,4.35,238.68,238.65,7.14]
[1758321445192,4.35,238.68,238.64,0.03018203]
[1758321445394,4.35,238.68,238.65,7.14]
[1758321446188,4.35,238.68,238.64,0.03018203]
[1758321446392,4.70495554,238.68,238.64,0.03018203]
[1758321446794,4.70495554,238.67,238.64,0.03018203]
[1758321447790,4.35,238.66,238.64,0.03018203]
[1758321448193,8.47355554,238.67,238.64,0.03018203]
[1758321448895,4.34,238.66,238.64,0.03018203]
[1758321449291,8.47355554,238.67,238.64,0.03018203]
[1758321449492,4.34,238.66,238.64,0.03018203]
[1758321449692,8.47355554,238.67,238.64,0.03018203]
[1758321450198,4.34,238.66,238.64,0.03018203]
[1758321450400,8.47355554,238.67,238.64,0.03018203]
[1758321450700,4.34,238.66,238.64,0.03018203]
[1758321450896,8.47355554,238.67,238.64,0.03018203]
[1758321451602,4.34,238.66,238.64,0.03018203]
[1758321452002,8.47355554,238.67,238.64,0.03018203]
[1758321452904,4.34,238.66,238.64,0.03018203]
[1758321453101,8.47355554,238.67,238.64,0.03018203]
[1758321453301,4.34,238.66,238.64,0.03018203]
[1758321453694,8.47355554,238.67,238.64,0.03018203]
[1758321454298,4.34,238.66,238.64,0.03018203]
[1758321454995,8.47355554,238.67,238.64,0.03018203]
[1758321456401,4.34,238.66,238.64,0.03018203]
[1758321456796,8.47355554,238.67,238.64,0.03018203]
[1758321457201,4.34,238.66,238.64,0.03018203]
[1758321458003,4.70495554,238.67,238.64,0.03018203]
[1758321459003,4.34,238.66,238.64,0.03018203]
[1758321463101,4.70495554,238.67,238.64,0.03018203]
[1758321463502,4.34,238.66,238.64,0.03018203]
[1758321465107,4.34,238.66,238.64,10.80908203]
[1758321465406,4.73172301,238.69,238.64,3.79908203]
[1758321465605,9.07172301,238.69,238.64,0.03018203]
[1758321465905,9.07172301,238.69,238.65,7.01]
[1758321466606,9.07172301,238.69,238.64,0.03018203]
[1758321466809,9.07172301,238.69,238.65,3.7688]
[1758321467007,9.07172301,238.69,238.66,7.01]
[1758321467600,9.07172301,238.69,238.65,3.7688]
[1758321467806,9.07172301,238.69,238.66,7.01]
[1758321468508,9.07172301,238.69,238.67,3.7686]
[1758321468709,9.07172301,238.69,238.67,10.7786]
[1758321469204,4.36676747,238.69,238.67,10.7786]
[1758321473611,0.02676747,238.69,238.67,10.7786]
[1758321477420,0.02676747,238.69,238.68,7.01]
[1758321488822,0.02676747,238.69,238.64,0.03018203]
[1758321489022,4.34,238.68,238.64,6.58018203]
[1758321489222,4.34,238.68,238.65,6.55]
[1758321489621,0.02676747,238.69,238.65,6.55]
[1758321489822,4.34,238.68,238.65,6.55]
[1758321490023,0.02676747,238.69,238.65,6.55]
[1758321490424,4.34,238.68,238.65,6.55]
[1758321490624,0.02676747,238.69,238.65,6.55]
[1758321490929,4.34,238.68,238.65,6.55]
[1758321493733,4.34,238.68,238.64,0.03018203]
[1758321494127,4.34,238.68,238.65,6.55]
[1758321494522,0.02676747,238.69,238.65,6.55]
[1758321495231,0.02676747,238.69,238.64,0.03018203]
[1758321495437,4.36676747,238.69,238.65,6.55]
[1758321495731,0.02676747,238.69,238.65,6.55]
[1758321495935,4.34,238.68,238.65,6.55]
[1758321496835,4.34,238.68,238.64,0.03018203]
[1758321497534,4.34,238.68,238.65,6.55]
[1758321497733,4.34,238.68,238.64,0.03018203]
[1758321497934,4.34,238.68,238.65,6.55]
[1758321498335,4.34,238.68,238.64,0.03018203]
[1758321498736,4.34,238.68,238.65,6.55]
[1758321499330,4.34,238.68,238.64,0.03018203]
[1758321499735,4.34,238.68,238.65,6.55]
[1758321499934,0.02676747,238.69,238.66,6.55]
[1758321500746,0.02676747,238.69,238.68,6.55]
[1758321544182,0.02676747,238.69,238.64,0.03018203]
[1758321544183,4.36676747,238.69,238.65,6.97]
[1758321544383,4.36676747,238.69,238.64,0.03018203]
[1758321544581,9.04495554,238.68,238.64,0.03018203]
[1758321544884,7.62817922,238.67,238.65,6.97]
[1758321545090,2.92322368,238.66,238.65,6.97]
[1758321557696,2.92322368,238.66,238.64,0.03018203]
[1758321557902,2.92322368,238.65,238.64,7.00018203]
[1758321560001,2.92322368,238.65,238.64,10.76928203]
[1758321576017,0.02676747,238.69,238.68,10.5385]
[1758321587922,2.93785298,238.69,238.68,10.5385]
[1758321590225,2.93778069,238.69,238.68,10.5385]
[1758321599231,4.70495554,238.73,238.72,6.67]
[1758321599425,5.43428594,238.75,238.7,6.67]
[1758321600221,0.7293304,238.75,238.7,6.67]
[1758321600425,0.7293304,238.75,238.7,0.02811392]
[1758321600620,4.70495554,238.76,238.75,10.4374]
[1758321601329,4.70495554,238.77,238.76,6.67]
[1758321602024,4.34,238.76,238.73,6.67]
[1758321602626,4.34,238.76,238.74,6.67]
[1758321604522,4.70495554,238.75,238.7,0.02811392]
[1758321604830,4.34,238.72,238.7,0.02811392]
[1758321605126,4.70495554,238.74,238.7,0.02811392]
[1758321605323,4.34,238.72,238.7,0.02811392]
[1758321605724,4.34,238.72,238.7,6.69811392]
[1758321605921,4.70495554,238.75,238.7,0.02811392]
[1758321606832,9.04495554,238.76,238.72,3.7677]
[1758321607023,4.34,238.75,238.72,10.4377]
[1758321607429,4.34,238.75,238.73,6.67]
[1758321607631,4.70495554,238.77,238.71,6.67]
[1758321607826,5.43420188,238.78,238.71,6.67]
[1758321608032,9.04495554,238.76,238.7,6.69811392]
[1758321608227,4.34,238.75,238.71,10.4379]
[1758321608430,4.70495554,238.76,238.71,6.67]
[1758321608626,0.72924634,238.78,238.7,0.02811392]
[1758321608627,4.34,238.73,238.7,0.02811392]
[1758321608835,4.34,238.72,238.7,0.02811392]
[1758321609231,4.70495554,238.73,238.7,0.02811392]
[1758321609538,4.34,238.72,238.7,0.02811392]
[1758321611133,2.89568046,238.71,238.7,0.02811392]
[1758321611834,2.89568046,238.71,238.7,6.69811392]
[1758321613233,4.34,238.73,238.7,6.69811392]
[1758321613927,4.70495554,238.74,238.7,0.02811392]
[1758321614134,9.04495554,238.73,238.7,0.02811392]
[1758321614436,4.34,238.71,238.7,0.02811392]
[1758321616439,9.04495554,238.71,238.7,0.02811392]
[1758321618037,4.70495554,238.71,238.7,6.69811392]
[1758321618341,4.34,238.71,238.7,0.02811392]
[1758321618535,9.04495554,238.71,238.7,0.02811392]
[1758321624541,4.34,238.71,238.7,0.02811392]
[1758321627439,4.70495554,238.72,238.7,0.02811392]
[1758321627645,4.70495554,238.72,238.7,6.69811392]
[1758321628441,9.04495554,238.72,238.7,6.69811392]
[1758321628643,4.70495554,238.72,238.7,0.02811392]
[1758321628838,4.34,238.71,238.7,0.02811392]
[1758321631344,4.70495554,238.72,238.7,0.02811392]
[1758321631942,4.70495554,238.75,238.71,6.88]
[1758321632144,9.04495554,238.75,238.7,0.02811392]
[1758321632348,9.04495554,238.74,238.71,6.88]
[1758321632735,4.34,238.73,238.71,6.88]
[1758321633340,4.34,238.73,238.7,3.79611392]
[1758321634145,4.70495554,238.74,238.7,3.79611392]
[1758321634349,4.34,238.74,238.7,3.79611392]
[1758321634539,4.70495554,238.75,238.7,3.79611392]
[1758321634735,4.34,238.74,238.7,3.79611392]
[1758321634936,4.70495554,238.75,238.7,3.79611392]
[1758321635340,4.34,238.74,238.7,3.79611392]
[1758321635534,4.70495554,238.75,238.7,3.79611392]
[1758321635736,4.34,238.74,238.7,0.02811392]
[1758321635946,4.70495554,238.72,238.7,0.02811392]
[1758321636141,4.34,238.71,238.7,0.02811392]
[1758321637448,9.04495554,238.71,238.7,0.02811392]
[1758321638541,4.34,238.71,238.7,0.02811392]
[1758321648058,9.04495554,238.71,238.7,0.02811392]
[1758321654160,3.7682,238.7,238.64,6.88]
[1758321654357,4.70827893,238.69,238.64,6.88]
[1758321654557,4.70827893,238.69,238.64,1.15283877]
[1758321654757,9.04827893,238.69,238.65,6.88]
[1758321654957,4.34,238.68,238.65,6.88]
[1758321657066,4.34,238.69,238.65,6.88]
[1758321657268,4.70827893,238.7,238.64,3.7689]
[1758321657464,4.34,238.69,238.64,3.7689]
[1758321657660,4.70827893,238.7,238.64,3.7689]
[1758321657861,4.70827893,238.7,238.65,6.88]
[1758321658166,4.34,238.69,238.65,6.88]
[1758321658365,4.70827893,238.7,238.65,6.88]
[1758321658867,4.34,238.69,238.65,6.88]
[1758321659367,4.70827893,238.7,238.65,6.88]
[1758321659757,4.70827893,238.7,238.64,3.7689]
[1758321659958,4.70827893,238.69,238.64,3.7689]
[1758321660164,4.70827893,238.69,238.65,6.8]
[1758321660365,4.35,238.68,238.65,6.8]
[1758321662468,4.70827893,238.69,238.65,6.8]
[1758321662667,4.70827893,238.72,238.69,6.8]
[1758321662861,4.35,238.75,238.69,6.8]
[1758321662862,4.70827893,238.73,238.69,6.8]
[1758321663265,9.05827893,238.73,238.68,1.15283877]
[1758321663473,4.35,238.72,238.69,6.8]
[1758321663667,4.35,238.72,238.65,7.95283877]
[1758321663871,4.35,238.72,238.65,6.8]
[1758321663872,9.05827893,238.72,238.65,6.8]
[1758321664771,9.05827893,238.72,238.66,3.7687]
[1758321665567,9.05827893,238.72,238.67,6.8]
[1758321665970,9.05827893,238.72,238.66,3.7687]
[1758321666171,9.05827893,238.72,238.67,6.8]
[1758321666372,9.05827893,238.72,238.66,3.7687]
[1758321666870,4.70827893,238.72,238.66,3.7687]
[1758321667074,9.05827893,238.72,238.66,10.5687]
[1758321667474,4.35,238.72,238.66,10.5687]
[1758321667669,4.70827893,238.73,238.66,6.8]
[1758321668773,4.70827893,238.73,238.68,3.7683]
[1758321668976,9.05827893,238.73,238.69,6.8]
[1758321669374,9.05827893,238.73,238.68,3.7683]
[1758321669582,9.05827893,238.73,238.69,6.8]
[1758321670275,4.35,238.72,238.69,6.8]
[1758321673782,4.35,238.72,238.68,3.7683]
[1758321674279,4.35,238.72,238.69,6.8]
[1758321675980,4.35,238.72,238.68,3.7683]
[1758321676179,4.35,238.72,238.69,6.8]
[1758321676885,4.35,238.72,238.68,3.7683]
[1758321677481,4.35,238.72,238.69,6.8]
[1758321678583,4.35,238.72,238.62,6.8]
[1758321678888,4.35,238.69,238.62,6.8]
[1758321679491,2.92511972,238.68,238.62,6.8]
[1758321679686,2.92511972,238.67,238.62,6.8]
[1758321679887,2.92511972,238.66,238.64,6.8]
[1758321680189,2.92511972,238.65,238.64,6.8]
[1758321690394,7.27511972,238.65,238.62,6.67]
[1758321690594,2.92511972,238.64,238.61,3.7695]
[1758321690794,2.92511972,238.63,238.62,6.67]
[1758321691693,2.92511972,238.63,238.59,3.7699]
[1758321691893,2.92511972,238.62,238.6,6.67]
[1758321692100,2.92511972,238.61,238.6,6.67]
[1758321710513,9.05827893,238.7,238.63,6.67]
[1758321710704,4.35,238.7,238.63,6.67]
[1758321711017,4.70827893,238.71,238.63,6.67]
[1758321711208,4.35,238.7,238.64,0.02823595]
[1758321711805,4.35,238.7,238.65,3.769]
[1758321713117,4.35,238.7,238.64,0.02823595]
[1758321713819,4.35,238.7,238.64,6.69823595]
[1758321714017,4.35,238.7,238.65,3.7689]
[1758321714218,9.05827893,238.71,238.65,10.4389]
[1758321714413,4.35,238.7,238.65,3.7689]
[1758321714615,4.70827893,238.71,238.65,3.7689]
[1758321714812,4.35,238.7,238.65,3.7689]
[1758321715212,4.35,238.69,238.65,3.7689]
[1758321715818,4.70827893,238.7,238.65,3.7689]
[1758321716013,4.35,238.69,238.65,10.4389]
[1758321716214,4.70827893,238.7,238.65,10.4389]
[1758321716411,4.35,238.69,238.65,10.4389]
[1758321716619,4.70827893,238.7,238.65,10.4389]
[1758321717715,4.70827893,238.68,238.64,0.02823595]
[1758321718212,4.35,238.67,238.64,0.02823595]
[1758321718521,4.34,238.66,238.64,0.02823595]
[1758321719221,4.70827893,238.67,238.64,0.02823595]
[1758321719618,4.34,238.66,238.64,0.02823595]
[1758321720014,4.70827893,238.67,238.64,0.02823595]
[1758321720421,4.34,238.66,238.64,0.02823595]
[1758321720921,4.70827893,238.67,238.64,0.02823595]
[1758321721115,4.34,238.66,238.64,0.02823595]
[1758321721513,4.70827893,238.67,238.64,0.02823595]
[1758321721821,4.34,238.66,238.64,0.02823595]
[1758321722020,4.70827893,238.67,238.64,0.02823595]
[1758321722410,4.34,238.65,238.64,0.02823595]
[1758321722613,7.25472746,238.65,238.64,0.02823595]
[1758321729128,11.96300639,238.65,238.64,0.02823595]
[1758321731128,7.25472746,238.65,238.64,0.02823595]
[1758321743638,7.25665105,238.65,238.64,0.02823595]